Cogmind - Beta 13 @@@ ROGUE MODE // 2024.04.03 @ 14:54:10 Player: Sam Result: Destroyed by S-10 Pest with Light Assault Rifle Performance ------------- Evolutions (1) 500 Regions Visited (5) 1000 Robots Destroyed (22) 110 Value Destroyed (480) 480 Prototype IDs (0) 0 Alien Tech Used (0) 0 Bonus (300) 300 TOTAL SCORE: 2390 Bonus ------- Aligned with FarCom 300 Cogmind --------- Core Integrity 0/400 Matter 300/300 Energy 99/100 System Corruption 0% Temperature Cool (0) Movement Core (50) Location -8/Mines Parts ------- > --- POWER (1) -------- (None) > --- PROPULSION (2) --- (None) > --- UTILITY (3) ------ (None) > --- WEAPON (3) ------- (None) > --- INVENTORY (5) ---- Flying Fortress v7 Peak State ------------ > --- POWER ------------ Light Ion Engine > --- PROPULSION ------- Compact Wheel Flight Unit > --- UTILITY ---------- Heat Sink Compact Matter Pod Signal Interpreter > --- WEAPON ----------- Particle Cannon Light Assault Rifle Grenade Launcher > --- INVENTORY -------- Flying Fortress v7 [Rating: 15] Favorites ----------- Power Light Ion Engine Engine Light Ion Engine Propulsion Light Treads Treads Light Treads Wheel Compact Wheel Flight Unit Flight Unit Utility Small Storage Unit Device Sensor Array Storage Small Storage Unit Processor Signal Interpreter Weapon Assault Rifle Energy Gun EM Pulse Gun Energy Cannon Particle Cannon Ballistic Gun Assault Rifle Launcher Grenade Launcher Build | -11 -10 -9 -9 -9 -8 ------- Run | Yrd Mat Mat Min Exi Min Slots Evolved 2 | . . 2 . . . Power . | . . . . . . Propulsion . | . . . . . . Utility 1 | . . 1 . . . Weapon 1 | . . 1 . . . Parts Attached 22 | 6 1 4 7 . 4 Power 2 | 1 . . . . 1 Engine 2 | 1 . . . . 1 Core . | . . . . . . Reactor . | . . . . . . Propulsion 5 | 2 . . 1 . 2 Treads 2 | 2 . . . . . Leg . | . . . . . . Wheel 2 | . . . 1 . 1 Hover . | . . . . . . Flight 1 | . . . . . 1 Utility 7 | 1 1 1 4 . . Device 3 | . 1 1 1 . . Storage 3 | 1 . . 2 . . Processor 1 | . . . 1 . . Hackware . | . . . . . . Protection . | . . . . . . Artifact . | . . . . . . Weapon 8 | 2 . 3 2 . 1 Energy Gun 2 | . . 2 . . . Energy Cannon 1 | . . . 1 . . Ballistic Gun 3 | 2 . . . . 1 Ballistic Cannon . | . . . . . . Launcher 2 | . . 1 1 . . Special Weapon . | . . . . . . Impact Weapon . | . . . . . . Slashing Weapon . | . . . . . . Piercing Weapon . | . . . . . . Special Melee Weapon . | . . . . . . Unidentified Prototypes . | . . . . . . Parts Lost 9 | . . 6 . . 3 Power 1 | . . 1 . . . Propulsion 1 | . . 1 . . . Utility 1 | . . 1 . . . Weapon 6 | . . 3 . . 3 Highest Loss Streak 6 | . . 6 . . 3 To Critical Strikes . | . . . . . . Average Slot Usage (%) 77 | . 95 87 51 66 69 Engine 6 | . 14 10 . . 7 Treads 12 | . 28 20 . . . Wheel 5 | . . . 11 11 14 Device 11 | . 10 16 6 11 8 Storage 10 | . 14 10 6 11 8 Processor 4 | . . . 11 11 8 Energy Cannon 4 | . . . 6 11 7 Ballistic Gun 13 | . 28 20 . . 7 Launcher 7 | . . 8 10 11 7 Naked Turns 66 | . . 29 . . 37 Heaviest Build 88 | 12 13 18 88 9 13 Greatest Support 40 | 40 40 40 16 16 26 Greatest Overweight (x) 5 | . . . 5 . . Average Overweight (x) . | . . . 1 . . Largest Inventory Capacity 25 | 8 8 8 25 5 5 Average Capacity 7 | 7 8 7 13 5 5 Most Carried 5 | 2 5 5 1 4 4 Average Carried 2 | . 3 3 . . 4 Final Capacity 8 | 8 8 5 5 5 5 Final Carried 5 | 2 5 2 . 4 4 Class Distribution -------------------- 76% | Mutant 19% | Skirmisher Dominant Class ---------------- Mutant | -10/Materials Skirmisher | -9/Materials Mutant | -9/Mines Mutant | -9/Exiles Scavenger-Skirmisher | -8/Mines Resources | -11 -10 -9 -9 -9 -8 ----------- Run | Yrd Mat Mat Min Exi Min Matter Collected 642 | 229 98 225 60 . 30 Remotely . | . . . . . . Salvage Created 487 | . 115 287 . . 85 Parts 44 | . 8 15 . . 21 Haulers Intercepted . | . . . . . . Recyclers Shooed 1 | . . 1 . . . Parts Field Recycled . | . . . . . . Retrieved Matter . | . . . . . . Parts Self-Destructed . | . . . . . . Prevented . | . . . . . . Kills | -11 -10 -9 -9 -9 -8 ------- Run | Yrd Mat Mat Min Exi Min Combat Hostiles Destroyed 17 | . 5 6 . . 6 Guns 8 | . 4 4 . . . AOE 9 | . 1 2 . . 6 Classes Destroyed 6 | . 2 2 . . 2 Builder 2 | . . . . . 2 Tunneler 1 | . . . . . 1 Watcher 2 | . . 2 . . . Swarmer 8 | . 3 . . . 5 Grunt 7 | . 2 4 . . 1 Sentry 2 | . . 2 . . . Best Kill Streak 5 | . 2 4 . . 5 Combat Bots Only 4 | . 2 4 . . 4 Max Kills in Single Turn 5 | . 1 3 . . 5 Gunslinging . | . . . . . . Exploded 4 | . 1 2 . . 4 Melee . | . . . . . . Uniques/NPCs Destroyed . | . . . . . . Combat | -11 -10 -9 -9 -9 -8 -------- Run | Yrd Mat Mat Min Exi Min Hostile Shots Fired 147 | . 29 49 . . 69 Missed 51 | . 9 13 . . 29 Damage Taken 1374 | . 255 575 . . 544 Core 456 | . 53 132 . . 271 Absorbed by Shields . | . . . . . . Core Remaining (%) 89 | 100 78 . . . . Volleys Fired 47 | . 12 26 . . 9 Largest 3 | . 2 3 . . 3 Hottest 118 | . 40 80 . . 118 Shots Fired 102 | . 24 58 . . 20 Gun 85 | . 24 53 . . 8 Cannon 9 | . . . . . 9 Launcher 8 | . . 5 . . 3 Special . | . . . . . . Kinetic 82 | . 24 50 . . 8 Thermal 10 | . . 1 . . 9 Explosive 8 | . . 5 . . 3 Electromagnetic 2 | . . 2 . . . Robot Hit Streak 6 | . 4 6 . . 3 Robot Miss Streak 4 | . 4 3 . . 3 Penetration Max . | . . . . . . Secondary Targets 2 | . 1 1 . . . Max Gunslinging Chain 1 | . 1 1 . . . Shots Hit Robots 48 | . 12 25 . . 11 Core Hits 34 | . 5 15 . . 14 Critical Kills . | . . . . . . Critical Parts Destroyed . | . . . . . . Critical Strikes . | . . . . . . Melee Attacks . | . . . . . . Impact . | . . . . . . Slashing . | . . . . . . Piercing . | . . . . . . Sneak Attacks . | . . . . . . Combat Hostiles . | . . . . . . Follow-up Attacks . | . . . . . . Damage Inflicted 1297 | . 234 452 . . 611 Guns 497 | . 152 301 . . 44 Cannons 141 | . . . . . 141 Explosions 659 | . 82 151 . . 426 Melee . | . . . . . . Ramming . | . . . . . . Kinetic 487 | . 152 291 . . 44 Thermal 151 | . . 10 . . 141 Explosive 659 | . 82 151 . . 426 Electromagnetic . | . . . . . . Impact . | . . . . . . Slashing . | . . . . . . Piercing . | . . . . . . Highest Corruption . | . . . . . . Average Corruption . | . . . . . . Corruption Purged . | . . . . . . Corruption Blocked . | . . . . . . Overload Shots . | . . . . . . Overflow Damage . | . . . . . . Projectiles . | . . . . . . Explosions . | . . . . . . Melee . | . . . . . . Knockbacks . | . . . . . . Impact . | . . . . . . Kinetic . | . . . . . . Secondary . | . . . . . . Self-Inflicted Damage 131 | . 91 40 . . . Shots 2 | . 1 1 . . . Rammed . | . . . . . . Targets Rammed . | . . . . . . Kicked . | . . . . . . Crushed . | . . . . . . Highest Temperature 132 | . . 12 . . 132 Average Temperature 54 | . . 7 . . 69 Received Heat Transfer 318 | . 18 174 . . 126 Siege Activations . | . . . . . . Robots Corrupted . | . . . . . . Combat Hostiles . | . . . . . . Parts Fried . | . . . . . . Impact Corruptions . | . . . . . . Robots Melted . | . . . . . . Combat Hostiles . | . . . . . . Parts Melted . | . . . . . . Heat Transferred 284 | . . 25 . . 259 Parts Sabotaged . | . . . . . . Parts Stolen . | . . . . . . Parts Stripped . | . . . . . . Power Chain Reactions . | . . . . . . Alert | -11 -10 -9 -9 -9 -8 ------- Run | Yrd Mat Mat Min Exi Min Peak Influence 201 | . 160 186 17 . 201 Initial 17 | . . . 17 . . Average 69 | . 50 104 17 . 127 Maximum Alert Level 1 | . . . . . 1 Low Security (%) 99 | 100 100 100 100 . 97 Level 1 . | . . . . . 2 Level 2 . | . . . . . . Level 3 . | . . . . . . Level 4 . | . . . . . . Level 5 . | . . . . . . High Security . | . . . . . . Max Security . | . . . . . . Squads Dispatched 5 | . 1 3 . . 1 Investigation 2 | . 1 1 . . . Extermination . | . . . . . . Reinforcement 3 | . . 2 . . 1 Assault . | . . . . . . Garrison . | . . . . . . Intercept . | . . . . . . Searches Triggered . | . . . . . . Construction Impeded 1 | . . . . . 1 Haulers Reinforced . | . . . . . . Active Scanning Responses . | . . . . . . Cargo Convoy Interrupts . | . . . . . . Stealth | -11 -10 -9 -9 -9 -8 --------- Run | Yrd Mat Mat Min Exi Min Distress Signals 2 | . 2 . . . . Communications Jammed . | . . . . . . Distress Signals . | . . . . . . Times Spotted 33 | . 5 13 . . 15 Peak Tracking Total 8 | . 4 3 . . 8 Tactical Retreats 3 | . . 1 . . 2 Traps | -11 -10 -9 -9 -9 -8 ------- Run | Yrd Mat Mat Min Exi Min Traps Triggered 1 | . 1 . . . . Indirectly . | . . . . . . Trap Hack Attempts . | . . . . . . Triggered . | . . . . . . Disarmed . | . . . . . . Reprogrammed . | . . . . . . Reused . | . . . . . . Traps Extracted . | . . . . . . Installed . | . . . . . . Triggered . | . . . . . . Machines | -11 -10 -9 -9 -9 -8 ---------- Run | Yrd Mat Mat Min Exi Min Machines Disabled 1 | . 1 . . . . Max in Single Turn 1 | . 1 . . . . Machines Repaired . | . . . . . . Machines Dismantled . | . . . . . . Machines Sabotaged . | . . . . . . Overloaded Fab Kills . | . . . . . . Hacking | -11 -10 -9 -9 -9 -8 --------- Run | Yrd Mat Mat Min Exi Min Machines Accessed 5 | . 3 1 . 1 . Terminals 3 | . 2 1 . . . Fabricators . | . . . . . . Repair Stations . | . . . . . . Recycling Units 1 | . 1 . . . . Scanalyzers . | . . . . . . Garrison Access . | . . . . . . Total Hacks 39 | . 9 7 . 23 . Successful 33 | . 6 4 . 23 . Failed 6 | . 3 3 . . . Catastrophic . | . . . . . . Database Lockouts . | . . . . . . Manual 3 | . 1 . . 2 . Terminals 14 | . 7 7 . . . Fabricators . | . . . . . . Repair Stations . | . . . . . . Recycling Units 2 | . 2 . . . . Scanalyzers . | . . . . . . Garrison Access . | . . . . . . Terminal Hacks 32 | . 5 4 . 23 . Record 31 | . 4 4 . 23 . Dispatch Records 1 | . 1 . . . . Fabricator Hacks . | . . . . . . Repair Station Hacks . | . . . . . . Recycling Unit Hacks 1 | . 1 . . . . Retrieve Components 1 | . 1 . . . . Scanalyzer . | . . . . . . Garrison Access Hacks . | . . . . . . Unauthorized Hacks . | . . . . . . Terminals . | . . . . . . Fabricators . | . . . . . . Repair Stations . | . . . . . . Recycling Units . | . . . . . . Scanalyzers . | . . . . . . Garrison Access . | . . . . . . Data Cores Recovered . | . . . . . . Used . | . . . . . . Hacking Detections 4 | . 3 1 . . . Full Trace Events 1 | . . 1 . . . Feedback Events . | . . . . . . Feedback Blocked . | . . . . . . Robot Schematics Acquired . | . . . . . . Robots Built . | . . . . . . Authchips . | . . . . . . Time . | . . . . . . Total Robot Build Rating . | . . . . . . Part Schematics Acquired . | . . . . . . Parts Built . | . . . . . . Authchips . | . . . . . . Time . | . . . . . . Total Part Build Rating . | . . . . . . Parts Repaired . | . . . . . . Time . | . . . . . . Parts Recycled . | . . . . . . Recycled Matter . | . . . . . . Retrieved Matter . | . . . . . . Retrieved Components . | . . . . . . Parts Scanalyzed . | . . . . . . Part Schematics Acquired . | . . . . . . Parts Damaged . | . . . . . . Bothacking | -11 -10 -9 -9 -9 -8 ------------ Run | Yrd Mat Mat Min Exi Min Used RIF Installer . | . . . . . . Robots Hacked . | . . . . . . Non-combat . | . . . . . . Combat . | . . . . . . Robot Hacks Applied . | . . . . . . Relay Couplers Released . | . . . . . . Fabnet Peak Effective % . | . . . . . . Robots Rewired . | . . . . . . Allies Hacked . | . . . . . . Hacks Repelled . | . . . . . . Allies | -11 -10 -9 -9 -9 -8 -------- Run | Yrd Mat Mat Min Exi Min Total Allies . | . . . . . . Largest Group . | . . . . . . Highest-Rated Group . | . . . . . . Highest-Rated Ally . | . . . . . . Total Orders . | . . . . . . Ally Attacks . | . . . . . . Total Damage . | . . . . . . Kills . | . . . . . . Allies Corrupted . | . . . . . . Allies Melted . | . . . . . . Intel | -11 -10 -9 -9 -9 -8 ------- Run | Yrd Mat Mat Min Exi Min Robot Analysis Total . | . . . . . . Derelict Logs Recovered . | . . . . . . Drone Launches . | . . . . . . Drone Recoveries . | . . . . . . Exploration | -11 -10 -9 -9 -9 -8 ------------- Run | Yrd Mat Mat Min Exi Min Turns Passed 1826 | 79 442 483 216 468 138 Spaces Moved 1268 | 46 202 276 164 433 147 Core 138 | 4 . 59 . . 75 Treads 461 | 42 202 217 . . . Legs . | . . . . . . Wheels 669 | . . . 164 433 72 Hover . | . . . . . . Flight . | . . . . . . Fastest Speed 50 | 50 160 50 100 100 50 Average Speed 119 | 150 160 136 122 100 71 Slowest Speed 175 | 160 160 160 175 100 100 Overloaded Moves . | . . . . . . Propulsion Burnouts . | . . . . . . Robots Hopped . | . . . . . . Cave-ins Triggered . | . . . . . . Exploration Rate (%) 35 | 4 42 22 32 71 40 Regions Visited 5 Branch Regions 3 Pre-discovered Areas 2 | . . . 1 1 . Known Exits Taken 2 | . . . 1 1 . Unknown Exits Taken 3 | 1 1 1 . . . Scrap Searched 1 | . . . 1 . . Spaces Dug . | . . . . . . Terrain Destroyed 64 | . 24 29 . . 11 Melee . | . . . . . . Projectile . | . . . . . . AOE 64 | . 24 29 . . 11 Terrain Rammed . | . . . . . . Walls Destroyed . | . . . . . . Machines Disabled . | . . . . . . Actions | -11 -10 -9 -9 -9 -8 --------- Run | Yrd Mat Mat Min Exi Min Total 1482 | 53 296 328 176 468 161 Wait 138 | . 79 22 2 35 . Move 1263 | 45 201 275 163 432 147 Hop . | . . . . . . Pick Up 7 | 2 3 1 . 1 . Fast Attach 16 | 6 1 . 5 . 4 Attach 6 | . . 4 2 . . Detach . | . . . . . . Swap . | . . . . . . Drop 2 | . . . 1 . 1 Fire 47 | . 12 26 . . 9 Melee . | . . . . . . Ram . | . . . . . . Kick . | . . . . . . Crush . | . . . . . . Escape Stasis . | . . . . . . Rewire 3 | . . . 3 . . Trap . | . . . . . . Miscellaneous . | . . . . . . Route ------- -11/Scrapyard -10/Materials -9/Materials -9/Mines -9/Exiles -8/Mines (discovered 1 exit: [*Mat]) History --------- Turn | Location | Event 29 | -11/Scrapyard | Discovered new exit (range 15) 80 | -11/Scrapyard | Entered Materials 317 | -10/Materials | Build established: Mutant 510 | -10/Materials | Discovered new exit (range 7) 522 | -10/Materials | Entered another Materials area 522 | -9/Materials | Evolved 2 slots: Utility x1, Weapon x1 919 | -9/Materials | Build established: Skirmisher 976 | -9/Materials | Released all parts (5) 1000 | -9/Materials | Discovered new exit (range 8) 1005 | -9/Materials | Entered Mines 1006 | -9/Mines | Lost 6 parts (1p1n1u3w) 1011 | -9/Mines | Assembled infested the area 1015 | -9/Mines | YI-UF0 nonchalantly dropped a Grenade Launcher on the ground 1057 | -9/Mines | Met 8R-AWN 1116 | -9/Mines | Learned location of Storage (-9) 1216 | -9/Mines | Discovered new exit (range 5) 1220 | -9/Mines | Identified exit to Exiles 1221 | -9/Mines | Entered Exiles 1245 | -9/Exiles | Welcomed by 8R-AWN 1255 | -9/Exiles | Build established: Mutant 1273 | -9/Exiles | Met EX-HEX 1311 | -9/Exiles | Met EX-DEC 1340 | -9/Exiles | Learned location of Zion (-7) 1379 | -9/Exiles | Discovered new exit (range 14) 1526 | -9/Exiles | Met EX-BIN 1548 | -9/Exiles | Aligned with FarCom system 1549 | -9/Exiles | Given EX-Vault access code 1582 | -9/Exiles | Opened EX-Vault 1594 | -9/Exiles | Found Prototype Flight Unit 1617 | -9/Exiles | Warned to stay clear of 0b10 Research branches 1688 | -9/Exiles | Identified exit to Mines 1689 | -9/Exiles | Left Exiles lab with Flying Fortress v7 1689 | -9/Exiles | Entered Mines 1787 | -8/Mines | Core integrity fell below 50% 1790 | -8/Mines | Released all parts (6) 1800 | -8/Mines | Discovered new exit (range 9) 1801 | -8/Mines | Core integrity fell below 20% 1820 | -8/Mines | Lost 3 parts (3w) 1827 | -8/Mines | Destroyed by S-10 Pest with Light Assault Rifle Last Messages --------------- U-05 Engineer lays Concrete. U-05 Engineer destroyed. ALERT: Construction progress impeded, dispatching reinforcements to local area. C-30 ARC bursts open, deploying its payload. S-10 Pest unfolds itself. G-47 Trooper destroyed. U-05 Engineer destroyed. S-10 Pest destroyed. Grenade Launcher destroyed. Particle Cannon destroyed. Lgt. Assault Rifle destroyed. Released Com. Matter Pod. Released Com. Wheel. Released Signal Interpreter. Released Heat Sink. Released Lgt. Ion Engine. Released Wheel. EXIT=FOUND K-01 Serf collects debris. Map ----- +----------------------------------------------------+ | ?????????????????????????????????????????????????? | | ?????????????????????????????????????????????????? | | ?????????????????????????????????????????????????? | | ?????????????????????????????????????????????????? | | ?????????????????????????????????????????????????? | | ?????????????????????????????????????????????????? | | ?????????????????????????????????????????????????? | | ?????????????????????????####????????????????????? | | ????????????????????????## ##???????????????????? | | ????????????????????????# #???????????????????? | | ????????????????????????# #???????????????????? | | ???????????????####?????# #########???????????? | | ??????????????## #???## #???????????? | | ??????????????# #?## #???????????? | | ??????????????# ## ##### #??###??????? | | ???????????????# ##???# #?# ##?????? | | ???????????????## s##???## ## ####??? | | ????????????????#### s#???## ##?? | | ???????????????????## #???# #?? | | ????????????????????# #??## #?? | | ????????????##??????## #??# #?? | | ???????????## ???## ##??# ##?? | | ??????????# ## #???# ##??? | | ?????????? #???## ##### ##???? | | ?????????? k ##??# ###????# #????? | | ?????????? @ #??# #??????? ##????? | | ???????????#### ## #??# #????????#?????? | | ??????????????## g#?## ##??# #??????????????? | | ???????????????## g ##### #???# #?????????####?? | | ????????????????# ##### ### #?# ##? | | ????????????????# ????# gg #?# #? | | ????????????????# b????##### ##### ### #? | | ???????????????? ??????###l #?????? ### #? | | ??????????????? ???????# #??????????# #? | | ???????????????????????????# g #?????????## #? | | ???????????????????????????# ###???????### ## | | ???????????????????????????# #????????## # | | ?????????????????????????### #???????## # | | ?????????????????????????# #???????# # | | ?????????????????????????# #??????## # | | ?????????????????????????## ##????## == ## | | ??????????????????????????## ###### !=! ##? | | ???????????????????????????# ##"%" !|* *###?? | | ??????????????????????????## ## ## =%! ##??? | | ?????????????????????????## ## # ![ *##?? | | ??????????????????""" ???# ### # [ #?? | | ?????????????? """ ## ##?# = = #?? | | ?????????????? ####%[ %[ ##?? | | ???????????????# ## =! ##??? | | ???????????????#